[Event "Betsys MČR v online bleskovém šachu 2021"]
[Site "Chess.com"]
[Date "2021.04.17"]
[Round "9"]
[White "DavidZidlicky"]
[Black "Honza_13"]
[Result "0-1"]
[WhiteElo "1725"]
[BlackElo "1942"]
[TimeControl "180+1"]
[EndTime "10:30:22 PDT"]
[Termination "Uživatel Honza_13 zvítězil matem"]

1. e4 {[%clk 0:02:59.8]} 1... c5 {[%clk 0:02:57.8]} 2. Nf3 {[%clk 0:02:59.2]}
2... Nc6 {[%clk 0:02:57.6]} 3. Nc3 {[%clk 0:02:59.2]} 3... g6 {[%clk 0:02:55.3]}
4. d4 {[%clk 0:02:58.4]} 4... cxd4 {[%clk 0:02:55.3]} 5. Nxd4 {[%clk 0:02:58.2]}
5... Bg7 {[%clk 0:02:55.9]} 6. Be3 {[%clk 0:02:54.2]} 6... Nf6 {[%clk
0:02:33.3]} 7. Nxc6 {[%clk 0:02:33.2]} 7... bxc6 {[%clk 0:02:28.5]} 8. Bc4
{[%clk 0:02:32.7]} 8... O-O {[%clk 0:02:26.8]} 9. O-O {[%clk 0:02:31.6]} 9...
Rb8 {[%clk 0:02:18.2]} 10. Rb1 {[%clk 0:02:17.1]} 10... Rb4 {[%clk 0:02:01.2]}
11. Bb3 {[%clk 0:02:05.8]} 11... Ba6 {[%clk 0:01:56.1]} 12. Re1 {[%clk 0:02:05]}
12... Nxe4 {[%clk 0:01:51.7]} 13. Nxe4 {[%clk 0:01:58.9]} 13... Rxe4 {[%clk
0:01:50.9]} 14. f3 {[%clk 0:01:57.1]} 14... Rxe3 {[%clk 0:01:17.7]} 15. Rxe3
{[%clk 0:01:53.8]} 15... Qb6 {[%clk 0:01:16.9]} 16. Qd2 {[%clk 0:01:01.7]} 16...
Bh6 {[%clk 0:01:05.9]} 17. Re1 {[%clk 0:00:55.1]} 17... d5 {[%clk 0:00:54.6]}
18. c3 {[%clk 0:00:45.6]} 18... Rd8 {[%clk 0:00:17.2]} 19. Kh1 {[%clk
0:00:43.3]} 19... Bxe3 {[%clk 0:00:15.6]} 20. Rxe3 {[%clk 0:00:43]} 20... d4
{[%clk 0:00:14.3]} 21. Rxe7 {[%clk 0:00:40]} 21... dxc3 {[%clk 0:00:12.7]} 22.
Qc2 {[%clk 0:00:21.8]} 22... Qc5 {[%clk 0:00:06.3]} 23. Rxf7 {[%clk 0:00:11.1]}
23... Bc4 {[%clk 0:00:06.1]} 24. Bxc4 {[%clk 0:00:03.3]} 24... Qxc4 {[%clk
0:00:06.5]} 25. Rf6 {[%clk 0:00:01.3]} 25... Qf1# {[%clk 0:00:06.2]} 0-1

[Event "Betsys MČR v online bleskovém šachu 2021"]
[Site "Chess.com"]
[Date "2021.04.17"]
[Round "9"]
[White "Varinius"]
[Black "petrgnojek"]
[Result "0-1"]
[WhiteElo "2412"]
[BlackElo "2271"]
[TimeControl "180+1"]
[EndTime "10:30:23 PDT"]
[Termination "Uživatel petrgnojek zvítězil po vzdání soupeře"]

1. d4 {[%clk 0:03:00.9]} 1... Nf6 {[%clk 0:02:59.4]} 2. Nf3 {[%clk 0:03:01.3]}
2... d6 {[%clk 0:02:58.8]} 3. g3 {[%clk 0:03:00.7]} 3... g6 {[%clk 0:02:59.4]}
4. Bg2 {[%clk 0:03:01.2]} 4... Bg7 {[%clk 0:03:00.3]} 5. O-O {[%clk 0:03:01.7]}
5... O-O {[%clk 0:03:00.7]} 6. b3 {[%clk 0:03:02.2]} 6... c5 {[%clk 0:03:00]} 7.
Bb2 {[%clk 0:02:58.6]} 7... Ne4 {[%clk 0:02:51.7]} 8. e3 {[%clk 0:02:57]} 8...
Nc6 {[%clk 0:02:50.1]} 9. Nbd2 {[%clk 0:02:31.9]} 9... d5 {[%clk 0:02:47.7]} 10.
Qe2 {[%clk 0:02:06]} 10... Bg4 {[%clk 0:02:43.8]} 11. h3 {[%clk 0:02:01.9]}
11... Nxd2 {[%clk 0:02:33.6]} 12. Qxd2 {[%clk 0:01:59.2]} 12... Bxf3 {[%clk
0:02:33.6]} 13. Bxf3 {[%clk 0:01:59.4]} 13... cxd4 {[%clk 0:02:33.2]} 14. exd4
{[%clk 0:01:59.6]} 14... e6 {[%clk 0:02:31.6]} 15. Rad1 {[%clk 0:01:52]} 15...
Rc8 {[%clk 0:02:30]} 16. Kg2 {[%clk 0:01:51]} 16... Qb6 {[%clk 0:02:21.9]} 17.
a3 {[%clk 0:01:48.5]} 17... Na5 {[%clk 0:02:14.8]} 18. Qe2 {[%clk 0:01:23.9]}
18... Rc7 {[%clk 0:02:01.9]} 19. Rd2 {[%clk 0:01:04.6]} 19... Rfc8 {[%clk
0:02:00.2]} 20. h4 {[%clk 0:01:04.2]} 20... Rc6 {[%clk 0:01:55.6]} 21. h5 {[%clk
0:01:01.9]} 21... Qc7 {[%clk 0:01:53.4]} 22. hxg6 {[%clk 0:00:59.8]} 22... hxg6
{[%clk 0:01:52.2]} 23. Qd3 {[%clk 0:00:18.4]} 23... Rxc2 {[%clk 0:01:45.7]} 24.
Rfd1 {[%clk 0:00:19]} 24... Rxd2 {[%clk 0:01:42.7]} 25. Rxd2 {[%clk 0:00:19.9]}
25... Qb6 {[%clk 0:01:41.5]} 26. b4 {[%clk 0:00:19.2]} 26... Nc4 {[%clk
0:01:40.2]} 27. Rc2 {[%clk 0:00:19.1]} 27... Rc6 {[%clk 0:01:40.2]} 28. Bc3
{[%clk 0:00:18.4]} 28... Nxa3 {[%clk 0:01:38.3]} 29. Ra2 {[%clk 0:00:15.5]}
29... Nb5 {[%clk 0:01:37.4]} 30. Be1 {[%clk 0:00:14.8]} 30... Nxd4 {[%clk
0:01:32.3]} 31. b5 {[%clk 0:00:12.1]} 31... Qxb5 {[%clk 0:01:30.1]} 32. Qxb5
{[%clk 0:00:11.8]} 32... Nxb5 {[%clk 0:01:29.7]} 33. Be2 {[%clk 0:00:12.4]}
33... a6 {[%clk 0:01:24.7]} 34. Ra5 {[%clk 0:00:09.3]} 34... Nd4 {[%clk
0:01:16.4]} 35. Bd3 {[%clk 0:00:08.5]} 35... Rc1 {[%clk 0:01:12.3]} 36. Bd2
{[%clk 0:00:08]} 36... Rd1 {[%clk 0:01:09.7]} 37. Ra2 {[%clk 0:00:08.1]} 37...
Nb3 {[%clk 0:01:09.7]} 38. Bc2 {[%clk 0:00:06.5]} 38... Rxd2 {[%clk 0:01:09.9]}
39. Bxb3 {[%clk 0:00:06.9]} 39... Rxa2 {[%clk 0:01:10.2]} 40. Bxa2 {[%clk
0:00:07.8]} 40... Kf8 {[%clk 0:01:10.3]} 41. Kf3 {[%clk 0:00:08.7]} 41... Ke7
{[%clk 0:01:10.5]} 42. Ke2 {[%clk 0:00:09.6]} 42... Kd6 {[%clk 0:01:10.8]} 43.
Kd3 {[%clk 0:00:10.5]} 43... Kc5 {[%clk 0:01:10.9]} 44. Bb3 {[%clk 0:00:11.4]}
44... b5 {[%clk 0:01:10.2]} 45. f4 {[%clk 0:00:11.3]} 45... a5 {[%clk 0:01:10]}
46. g4 {[%clk 0:00:11.5]} 46... a4 {[%clk 0:01:07.8]} 47. Bc2 {[%clk 0:00:11.2]}
47... Kb4 {[%clk 0:01:03.5]} 48. Kd2 {[%clk 0:00:09.2]} 48... a3 {[%clk
0:01:01.8]} 49. Kc1 {[%clk 0:00:10.1]} 49... a2 {[%clk 0:01:01.3]} 0-1

[Event "Betsys MČR v online bleskovém šachu 2021"]
[Site "Chess.com"]
[Date "2021.04.17"]
[Round "9"]
[White "misacz"]
[Black "WhiteLittleHorse"]
[Result "1-0"]
[WhiteElo "1087"]
[BlackElo "953"]
[TimeControl "180+1"]
[EndTime "10:30:23 PDT"]
[Termination "Uživatel misacz zvítězil matem"]

1. d4 {[%clk 0:03:00.8]} 1... d5 {[%clk 0:02:58.5]} 2. Nf3 {[%clk 0:02:59.2]}
2... Nc6 {[%clk 0:02:57.2]} 3. e3 {[%clk 0:02:58.6]} 3... Nf6 {[%clk 0:02:54.8]}
4. Bd3 {[%clk 0:02:56.1]} 4... e6 {[%clk 0:02:52.7]} 5. Nbd2 {[%clk 0:02:52]}
5... Bd7 {[%clk 0:02:50.2]} 6. Qe2 {[%clk 0:02:51.6]} 6... Bd6 {[%clk
0:02:48.3]} 7. O-O {[%clk 0:02:45.8]} 7... Nb4 {[%clk 0:02:45.9]} 8. c3 {[%clk
0:02:44.6]} 8... Nxd3 {[%clk 0:02:44.8]} 9. Qxd3 {[%clk 0:02:44.9]} 9... a6
{[%clk 0:02:42.9]} 10. e4 {[%clk 0:02:44.7]} 10... dxe4 {[%clk 0:02:40.6]} 11.
Nxe4 {[%clk 0:02:44.5]} 11... Bb5 {[%clk 0:02:38.8]} 12. Nxf6+ {[%clk
0:02:38.8]} 12... Qxf6 {[%clk 0:02:36.7]} 13. c4 {[%clk 0:02:33.5]} 13... Bc6
{[%clk 0:02:29.6]} 14. Bg5 {[%clk 0:02:30.2]} 14... Qg6 {[%clk 0:02:21.8]} 15.
Qxg6 {[%clk 0:02:26.6]} 15... hxg6 {[%clk 0:02:20.1]} 16. d5 {[%clk 0:02:15.5]}
16... exd5 {[%clk 0:02:19]} 17. Rfe1+ {[%clk 0:02:14.2]} 17... Kf8 {[%clk
0:02:14.5]} 18. cxd5 {[%clk 0:02:11.5]} 18... Bxd5 {[%clk 0:02:12.5]} 19. Ne5
{[%clk 0:02:06.6]} 19... f6 {[%clk 0:02:07.3]} 20. Nd7+ {[%clk 0:02:04.9]} 20...
Kf7 {[%clk 0:02:05.2]} 21. Bd2 {[%clk 0:01:54.2]} 21... Bxh2+ {[%clk 0:02:03.6]}
22. Kf1 {[%clk 0:01:52]} 22... Bd6 {[%clk 0:01:57.5]} 23. Rad1 {[%clk
0:01:45.9]} 23... Rh1+ {[%clk 0:01:53.3]} 24. Ke2 {[%clk 0:01:44.7]} 24... Bc4+
{[%clk 0:01:52.9]} 25. Kf3 {[%clk 0:01:44.1]} 25... Bd5+ {[%clk 0:01:46.1]} 26.
Kg4 {[%clk 0:01:36.3]} 26... f5+ {[%clk 0:01:41.9]} 27. Kg5 {[%clk 0:01:36.4]}
27... Rh4 {[%clk 0:01:39.5]} 28. Kxh4 {[%clk 0:01:29.9]} 28... Be6 {[%clk
0:01:35.2]} 29. Ne5+ {[%clk 0:01:28.1]} 29... Bxe5 {[%clk 0:01:32.6]} 30. Rxe5
{[%clk 0:01:26.6]} 30... Rh8+ {[%clk 0:01:31.3]} 31. Kg5 {[%clk 0:01:24.4]}
31... Rh5+ {[%clk 0:01:28.7]} 32. Kf4 {[%clk 0:01:23.1]} 32... g5+ {[%clk
0:01:27.6]} 33. Ke3 {[%clk 0:01:19.9]} 33... g6 {[%clk 0:01:24.2]} 34. Bc3
{[%clk 0:01:15.8]} 34... f4+ {[%clk 0:01:21.4]} 35. Ke2 {[%clk 0:01:10.2]} 35...
Bg4+ {[%clk 0:01:19.9]} 36. f3 {[%clk 0:01:09.7]} 36... Bf5 {[%clk 0:01:16]} 37.
Bb4 {[%clk 0:01:03.4]} 37... Rh2 {[%clk 0:01:11.9]} 38. Kf2 {[%clk 0:00:55.2]}
38... Kf6 {[%clk 0:01:00.9]} 39. Bc3 {[%clk 0:00:43.4]} 39... Kf7 {[%clk
0:00:57.8]} 40. Rde1 {[%clk 0:00:24.2]} 40... Rh8 {[%clk 0:00:49.4]} 41. Re7+
{[%clk 0:00:23.5]} 41... Kg8 {[%clk 0:00:46]} 42. Re8+ {[%clk 0:00:23.8]} 42...
Kh7 {[%clk 0:00:38.5]} 43. R1e7+ {[%clk 0:00:23.1]} 43... Kh6 {[%clk 0:00:36.7]}
44. Rxh8# {[%clk 0:00:21.8]} 1-0

[Event "Betsys MČR v online bleskovém šachu 2021"]
[Site "Chess.com"]
[Date "2021.04.17"]
[Round "9"]
[White "florenc1330"]
[Black "Pantata007"]
[Result "1-0"]
[WhiteElo "2109"]
[BlackElo "2251"]
[TimeControl "180+1"]
[EndTime "10:30:24 PDT"]
[Termination "Uživatel florenc1330 zvítězil na čas"]

1. c4 {[%clk 0:02:59]} 1... Nf6 {[%clk 0:02:59.1]} 2. g3 {[%clk 0:02:58]} 2...
c6 {[%clk 0:02:58.9]} 3. Bg2 {[%clk 0:02:58]} 3... d5 {[%clk 0:02:59.2]} 4. Nf3
{[%clk 0:02:57]} 4... dxc4 {[%clk 0:02:59.2]} 5. O-O {[%clk 0:02:56.7]} 5...
Nbd7 {[%clk 0:02:59.4]} 6. a4 {[%clk 0:02:56.2]} 6... a5 {[%clk 0:02:59.1]} 7.
Na3 {[%clk 0:02:52.1]} 7... Nb6 {[%clk 0:02:59.2]} 8. Qc2 {[%clk 0:02:50.1]}
8... Be6 {[%clk 0:02:59.3]} 9. Rd1 {[%clk 0:02:47.3]} 9... g6 {[%clk 0:02:42.6]}
10. d3 {[%clk 0:02:46.4]} 10... cxd3 {[%clk 0:02:37.8]} 11. Rxd3 {[%clk
0:02:46.3]} 11... Qc8 {[%clk 0:02:32.5]} 12. Ng5 {[%clk 0:02:38.3]} 12... Bg7
{[%clk 0:01:54.4]} 13. Nxe6 {[%clk 0:02:29.8]} 13... Qxe6 {[%clk 0:01:55.3]} 14.
Qc5 {[%clk 0:02:19.6]} 14... Nbd5 {[%clk 0:01:37.5]} 15. e4 {[%clk 0:02:05.6]}
15... Nxe4 {[%clk 0:01:35.9]} 16. Qc4 {[%clk 0:01:44.9]} 16... Nef6 {[%clk
0:01:13.7]} 17. Bd2 {[%clk 0:01:39.1]} 17... O-O {[%clk 0:01:12.2]} 18. Re1
{[%clk 0:01:38.9]} 18... Qd6 {[%clk 0:01:06.3]} 19. Bf4 {[%clk 0:01:34.8]} 19...
Qb4 {[%clk 0:01:03.4]} 20. Bd2 {[%clk 0:01:15.4]} 20... Qxc4 {[%clk 0:00:35.8]}
21. Nxc4 {[%clk 0:01:14.5]} 21... e6 {[%clk 0:00:35.7]} 22. Nd6 {[%clk
0:01:09.7]} 22... b6 {[%clk 0:00:27.6]} 23. Rc1 {[%clk 0:01:05.8]} 23... c5
{[%clk 0:00:17.5]} 24. Nc4 {[%clk 0:01:03.4]} 24... Rab8 {[%clk 0:00:15.9]} 25.
Ne5 {[%clk 0:01:01.6]} 25... Rfc8 {[%clk 0:00:13.8]} 26. Bg5 {[%clk 0:00:58.7]}
26... Nb4 {[%clk 0:00:10.2]} 27. Rdd1 {[%clk 0:00:53.8]} 27... Nfd5 {[%clk
0:00:10]} 28. Nc4 {[%clk 0:00:39.7]} 28... h6 {[%clk 0:00:04.4]} 29. Bd2 {[%clk
0:00:37.8]} 29... Nd3 {[%clk 0:00:04.6]} 30. Rc2 {[%clk 0:00:35.4]} 30... N5b4
{[%clk 0:00:04.7]} 31. Bxb4 {[%clk 0:00:34.5]} 31... Nxb4 {[%clk 0:00:05.6]} 32.
Rcd2 {[%clk 0:00:33]} 32... f6 {[%clk 0:00:03.5]} 33. Nd6 {[%clk 0:00:32.9]}
33... Rd8 {[%clk 0:00:02.8]} 34. Ne4 {[%clk 0:00:31.4]} 1-0

[Event "Betsys MČR v online bleskovém šachu 2021"]
[Site "Chess.com"]
[Date "2021.04.17"]
[Round "9"]
[White "MatejKopecky13"]
[Black "Ehlundi"]
[Result "0-1"]
[WhiteElo "1505"]
[BlackElo "1759"]
[TimeControl "180+1"]
[EndTime "10:30:24 PDT"]
[Termination "Uživatel Ehlundi zvítězil matem"]

1. e4 {[%clk 0:03:00.9]} 1... c5 {[%clk 0:02:59.7]} 2. Nf3 {[%clk 0:02:59]} 2...
Nc6 {[%clk 0:03:00.1]} 3. Bc4 {[%clk 0:02:53.6]} 3... e6 {[%clk 0:02:59.7]} 4.
Nc3 {[%clk 0:02:52.4]} 4... a6 {[%clk 0:02:55.5]} 5. a4 {[%clk 0:02:50.8]} 5...
Nf6 {[%clk 0:02:54.4]} 6. d3 {[%clk 0:02:50]} 6... Be7 {[%clk 0:02:54]} 7. Bf4
{[%clk 0:02:40.7]} 7... O-O {[%clk 0:02:52.1]} 8. h3 {[%clk 0:02:36.6]} 8... d6
{[%clk 0:02:52.4]} 9. Qd2 {[%clk 0:02:25.9]} 9... e5 {[%clk 0:02:52.2]} 10. Bg5
{[%clk 0:02:24.4]} 10... Be6 {[%clk 0:02:51.4]} 11. Bxe6 {[%clk 0:02:23.5]}
11... fxe6 {[%clk 0:02:51.2]} 12. h4 {[%clk 0:02:23.4]} 12... Nd4 {[%clk
0:02:47.9]} 13. Nxd4 {[%clk 0:02:22.2]} 13... cxd4 {[%clk 0:02:47.6]} 14. Ne2
{[%clk 0:02:22.6]} 14... Qe8 {[%clk 0:02:33.1]} 15. Ng3 {[%clk 0:02:20.2]} 15...
h6 {[%clk 0:02:11.3]} 16. Bxf6 {[%clk 0:02:19.1]} 16... Bxf6 {[%clk 0:02:06.9]}
17. Qe2 {[%clk 0:02:12.6]} 17... Qg6 {[%clk 0:02:03.6]} 18. h5 {[%clk
0:02:07.9]} 18... Qg5 {[%clk 0:02:02.6]} 19. a5 {[%clk 0:01:56.1]} 19... Rac8
{[%clk 0:02:00.5]} 20. b4 {[%clk 0:01:52]} 20... Rc7 {[%clk 0:01:58.3]} 21. Ra2
{[%clk 0:01:50.5]} 21... Rcf7 {[%clk 0:01:55.7]} 22. Qd2 {[%clk 0:01:48.4]}
22... Qg4 {[%clk 0:01:52.5]} 23. Rh3 {[%clk 0:01:40.3]} 23... Bg5 {[%clk
0:01:50.8]} 24. Qe2 {[%clk 0:01:39.5]} 24... Qxe2+ {[%clk 0:01:47.8]} 25. Kxe2
{[%clk 0:01:39.7]} 25... Rxf2+ {[%clk 0:01:47.9]} 26. Ke1 {[%clk 0:01:40.2]}
26... Rxg2 {[%clk 0:01:45.3]} 27. Ne2 {[%clk 0:01:39]} 27... Be3 {[%clk
0:01:39.4]} 28. c3 {[%clk 0:01:31.6]} 28... Rff2 {[%clk 0:01:17.7]} 29. cxd4
{[%clk 0:01:27.1]} 29... exd4 {[%clk 0:01:15.2]} 30. Rh1 {[%clk 0:01:25.7]}
30... Rf8 {[%clk 0:01:11.2]} 31. Rf1 {[%clk 0:01:24]} 31... Rxf1+ {[%clk
0:01:09.6]} 32. Kxf1 {[%clk 0:01:24.9]} 32... Rf2+ {[%clk 0:01:09.6]} 33. Ke1
{[%clk 0:01:24.8]} 33... Rh2 {[%clk 0:01:09.4]} 34. Kd1 {[%clk 0:01:22]} 34...
Rxh5 {[%clk 0:01:09.1]} 35. Ng3 {[%clk 0:01:12.3]} 35... Rg5 {[%clk 0:01:05]}
36. Ne2 {[%clk 0:01:11.8]} 36... h5 {[%clk 0:01:03.7]} 37. Kc2 {[%clk
0:01:10.3]} 37... h4 {[%clk 0:01:03.7]} 38. Kb3 {[%clk 0:01:10.2]} 38... h3
{[%clk 0:01:03.1]} 39. Ra1 {[%clk 0:01:05.2]} 39... h2 {[%clk 0:01:00.8]} 40.
Rh1 {[%clk 0:01:05.6]} 40... Bg1 {[%clk 0:01:00.9]} 41. Nf4 {[%clk 0:01:04.6]}
41... Rg3 {[%clk 0:00:54.8]} 42. Nxe6 {[%clk 0:01:03.8]} 42... Rxd3+ {[%clk
0:00:54]} 43. Kc4 {[%clk 0:01:03.9]} 43... Rd2 {[%clk 0:00:52.2]} 44. Kd5 {[%clk
0:01:02.1]} 44... d3 {[%clk 0:00:49.1]} 45. Kxd6 {[%clk 0:01:01.1]} 45... Re2
{[%clk 0:00:48.1]} 46. Nf4 {[%clk 0:01:00.8]} 46... Rxe4 {[%clk 0:00:47.2]} 47.
Nxd3 {[%clk 0:00:59.6]} 47... Rd4+ {[%clk 0:00:47.6]} 48. Kc7 {[%clk 0:00:59.5]}
48... Rxd3 {[%clk 0:00:48.1]} 49. Kxb7 {[%clk 0:01:00.4]} 49... Rd6 {[%clk
0:00:45]} 50. Kc7 {[%clk 0:00:59.5]} 50... Re6 {[%clk 0:00:44.4]} 51. Kd7 {[%clk
0:00:59.7]} 51... Kf7 {[%clk 0:00:44.8]} 52. Kc7 {[%clk 0:00:58.3]} 52... g5
{[%clk 0:00:44.4]} 53. Kb7 {[%clk 0:00:58.4]} 53... g4 {[%clk 0:00:44.7]} 54. b5
{[%clk 0:00:59.3]} 54... axb5 {[%clk 0:00:44.5]} 55. a6 {[%clk 0:00:58.9]} 55...
g3 {[%clk 0:00:43.5]} 56. a7 {[%clk 0:00:58.6]} 56... Re7+ {[%clk 0:00:42]} 57.
Kb8 {[%clk 0:00:58.7]} 57... Bxa7+ {[%clk 0:00:40.3]} 58. Kc8 {[%clk 0:00:57.8]}
58... Bg1 {[%clk 0:00:38.3]} 59. Rxg1 {[%clk 0:00:54.3]} 59... hxg1=Q {[%clk
0:00:37]} 60. Kb8 {[%clk 0:00:55.2]} 60... Qa7+ {[%clk 0:00:35.5]} 61. Kc8
{[%clk 0:00:56.1]} 61... Qc7# {[%clk 0:00:35.7]} 0-1

[Event "Betsys MČR v online bleskovém šachu 2021"]
[Site "Chess.com"]
[Date "2021.04.17"]
[Round "9"]
[White "maelic"]
[Black "Dan1612"]
[Result "0-1"]
[WhiteElo "1777"]
[BlackElo "1993"]
[TimeControl "180+1"]
[EndTime "10:30:26 PDT"]
[Termination "Uživatel Dan1612 zvítězil po vzdání soupeře"]

1. d4 {[%clk 0:03:00.9]} 1... g6 {[%clk 0:02:59.2]} 2. Nc3 {[%clk 0:02:57.2]}
2... Bg7 {[%clk 0:02:57.8]} 3. Bf4 {[%clk 0:02:55.8]} 3... d6 {[%clk 0:02:57.6]}
4. e4 {[%clk 0:02:55.6]} 4... Nc6 {[%clk 0:02:55.1]} 5. Nf3 {[%clk 0:02:43.9]}
5... Nf6 {[%clk 0:02:54.8]} 6. Bc4 {[%clk 0:02:32.9]} 6... O-O {[%clk 0:02:53]}
7. h3 {[%clk 0:02:31.6]} 7... Nh5 {[%clk 0:02:52.3]} 8. Be3 {[%clk 0:02:30.3]}
8... e5 {[%clk 0:02:50.3]} 9. dxe5 {[%clk 0:02:27.3]} 9... dxe5 {[%clk
0:02:48.4]} 10. Qxd8 {[%clk 0:02:23.2]} 10... Rxd8 {[%clk 0:02:48.2]} 11. O-O
{[%clk 0:02:24.1]} 11... Nf4 {[%clk 0:02:46.2]} 12. Ng5 {[%clk 0:02:07.2]} 12...
Be6 {[%clk 0:02:34.8]} 13. Nxe6 {[%clk 0:01:58.2]} 13... Nxe6 {[%clk 0:02:35.7]}
14. Bxe6 {[%clk 0:01:55.8]} 14... fxe6 {[%clk 0:02:36.6]} 15. Rad1 {[%clk
0:01:53.6]} 15... Nd4 {[%clk 0:02:36.6]} 16. Rd2 {[%clk 0:01:44.4]} 16... c6
{[%clk 0:02:30.6]} 17. Rfd1 {[%clk 0:01:44.2]} 17... Rd7 {[%clk 0:02:20.2]} 18.
Kf1 {[%clk 0:01:29]} 18... Rad8 {[%clk 0:02:17.5]} 19. Ne2 {[%clk 0:01:28.8]}
19... Rd6 {[%clk 0:01:55.4]} 20. c3 {[%clk 0:01:04]} 20... Nb5 {[%clk
0:01:55.3]} 21. Rxd6 {[%clk 0:01:03.5]} 21... Rxd6 {[%clk 0:01:53.8]} 22. Rxd6
{[%clk 0:01:03]} 22... Nxd6 {[%clk 0:01:54.7]} 23. f3 {[%clk 0:01:00.9]} 23...
b6 {[%clk 0:01:54.1]} 24. Nc1 {[%clk 0:00:58.5]} 24... Nc4 {[%clk 0:01:53.3]}
25. Bg1 {[%clk 0:00:51.9]} 25... Nxb2 {[%clk 0:01:53.2]} 26. Ke2 {[%clk
0:00:50.2]} 26... Bh6 {[%clk 0:01:47.1]} 27. Nb3 {[%clk 0:00:47.7]} 27... Kf7
{[%clk 0:01:34.3]} 28. Bh2 {[%clk 0:00:44.5]} 28... Bf4 {[%clk 0:01:31.5]} 29.
g3 {[%clk 0:00:35]} 29... Bh6 {[%clk 0:01:30.8]} 30. Bg1 {[%clk 0:00:33.9]}
30... Ke7 {[%clk 0:01:26.3]} 31. Be3 {[%clk 0:00:20.5]} 31... Bxe3 {[%clk
0:01:16.7]} 32. Kxe3 {[%clk 0:00:21.4]} 32... g5 {[%clk 0:01:13.3]} 33. Nd2
{[%clk 0:00:19.4]} 33... Nd1+ {[%clk 0:01:10.3]} 34. Kd3 {[%clk 0:00:17.9]}
34... Nf2+ {[%clk 0:01:10.8]} 35. Kc4 {[%clk 0:00:17.7]} 35... Nxh3 {[%clk
0:01:11]} 36. g4 {[%clk 0:00:18]} 36... Nf4 {[%clk 0:01:09.5]} 37. Kb4 {[%clk
0:00:18]} 37... h5 {[%clk 0:01:09.4]} 38. c4 {[%clk 0:00:18.5]} 38... h4 {[%clk
0:01:08.8]} 39. Nf1 {[%clk 0:00:18]} 39... Nd3+ {[%clk 0:01:04.5]} 40. Kc3
{[%clk 0:00:17.1]} 40... Ne1 {[%clk 0:01:04.2]} 41. Nh2 {[%clk 0:00:17.3]} 41...
Ng2 {[%clk 0:01:03]} 42. Kb4 {[%clk 0:00:17]} 42... Ne3 {[%clk 0:01:02.4]} 43.
c5 {[%clk 0:00:16.9]} 43... bxc5+ {[%clk 0:00:58.2]} 44. Kxc5 {[%clk 0:00:17.8]}
44... Kd7 {[%clk 0:00:58.8]} 45. a4 {[%clk 0:00:16.1]} 45... h3 {[%clk
0:00:59.3]} 46. a5 {[%clk 0:00:15.8]} 46... Kc7 {[%clk 0:00:55.3]} 47. Kb4
{[%clk 0:00:13.6]} 47... Nc2+ {[%clk 0:00:55.3]} 48. Kc5 {[%clk 0:00:13.9]}
48... Ne1 {[%clk 0:00:54]} 49. Kb4 {[%clk 0:00:13.6]} 49... Kd6 {[%clk 0:00:53]}
50. Kc4 {[%clk 0:00:13.6]} 50... a6 {[%clk 0:00:53.3]} 51. Kb4 {[%clk
0:00:13.9]} 51... c5+ {[%clk 0:00:53.9]} 52. Kc4 {[%clk 0:00:14.4]} 52... Kc6
{[%clk 0:00:54.8]} 53. Kc3 {[%clk 0:00:14.7]} 53... Kb5 {[%clk 0:00:55.2]} 0-1

[Event "Betsys MČR v online bleskovém šachu 2021"]
[Site "Chess.com"]
[Date "2021.04.17"]
[Round "9"]
[White "Tomasbezdek07"]
[Black "petiva3"]
[Result "1-0"]
[WhiteElo "1701"]
[BlackElo "1396"]
[TimeControl "180+1"]
[EndTime "10:30:26 PDT"]
[Termination "Uživatel Tomasbezdek07 zvítězil na čas"]

1. e4 {[%clk 0:03:00.9]} 1... e5 {[%clk 0:03:00]} 2. Nf3 {[%clk 0:02:59.6]} 2...
Nc6 {[%clk 0:03:00.1]} 3. Bc4 {[%clk 0:02:59.3]} 3... Nf6 {[%clk 0:02:58.1]} 4.
d3 {[%clk 0:02:56.9]} 4... Bc5 {[%clk 0:02:55.7]} 5. O-O {[%clk 0:02:55.6]} 5...
O-O {[%clk 0:02:55.6]} 6. c3 {[%clk 0:02:56]} 6... d6 {[%clk 0:02:52.4]} 7. b4
{[%clk 0:02:56.3]} 7... Bb6 {[%clk 0:02:52.1]} 8. a4 {[%clk 0:02:55.6]} 8... a5
{[%clk 0:02:51.1]} 9. b5 {[%clk 0:02:55]} 9... Ne7 {[%clk 0:02:49.5]} 10. Re1
{[%clk 0:02:53.5]} 10... c6 {[%clk 0:02:43.5]} 11. d4 {[%clk 0:02:46.9]} 11...
exd4 {[%clk 0:02:33.7]} 12. cxd4 {[%clk 0:02:46.2]} 12... Be6 {[%clk 0:02:27]}
13. Bxe6 {[%clk 0:02:40.6]} 13... fxe6 {[%clk 0:02:27.9]} 14. Bb2 {[%clk
0:02:31.1]} 14... Ng6 {[%clk 0:02:24]} 15. Na3 {[%clk 0:02:23.8]} 15... Qe7
{[%clk 0:02:16.2]} 16. Qc2 {[%clk 0:02:20.5]} 16... Rac8 {[%clk 0:02:15.2]} 17.
Qd2 {[%clk 0:02:16.4]} 17... Rfd8 {[%clk 0:01:58.9]} 18. Rac1 {[%clk 0:02:10.5]}
18... e5 {[%clk 0:01:49.6]} 19. d5 {[%clk 0:02:03.2]} 19... cxd5 {[%clk
0:01:42.4]} 20. exd5 {[%clk 0:02:01.3]} 20... Qf7 {[%clk 0:01:37.7]} 21. Nc4
{[%clk 0:01:46.3]} 21... Nxd5 {[%clk 0:01:04.8]} 22. Red1 {[%clk 0:01:44.4]}
22... Nge7 {[%clk 0:00:51.5]} 23. Ba3 {[%clk 0:01:41.6]} 23... Bc5 {[%clk
0:00:41.1]} 24. Bxc5 {[%clk 0:01:35.3]} 24... dxc5 {[%clk 0:00:42]} 25. Nxa5
{[%clk 0:01:33.7]} 25... b6 {[%clk 0:00:36.9]} 26. Nc4 {[%clk 0:01:25.9]} 26...
Nf4 {[%clk 0:00:22.1]} 27. Qxd8+ {[%clk 0:01:20.6]} 27... Rxd8 {[%clk
0:00:20.2]} 28. Rxd8+ {[%clk 0:01:21.1]} 28... Qf8 {[%clk 0:00:20.4]} 29. Rxf8+
{[%clk 0:01:21]} 29... Kxf8 {[%clk 0:00:21.3]} 30. Re1 {[%clk 0:01:16.7]} 30...
Nd3 {[%clk 0:00:19.9]} 31. Re3 {[%clk 0:01:15]} 31... Nb4 {[%clk 0:00:15.4]} 32.
Ncxe5 {[%clk 0:01:12.9]} 32... Ned5 {[%clk 0:00:13.2]} 33. Re2 {[%clk
0:01:09.1]} 33... Nc3 {[%clk 0:00:10.2]} 34. Nd7+ {[%clk 0:01:07.9]} 34... Kf7
{[%clk 0:00:09.7]} 35. Re3 {[%clk 0:01:07.2]} 35... Nxa4 {[%clk 0:00:09.1]} 36.
h3 {[%clk 0:01:02.3]} 36... Nb2 {[%clk 0:00:07.8]} 37. Ng5+ {[%clk 0:01:00.4]}
37... Kg6 {[%clk 0:00:06.7]} 38. h4 {[%clk 0:00:58.3]} 38... h6 {[%clk
0:00:06.3]} 39. Nf3 {[%clk 0:00:50.8]} 39... Nc4 {[%clk 0:00:03.7]} 40. Re6+
{[%clk 0:00:48.8]} 40... Kf7 {[%clk 0:00:02.6]} 41. Re4 {[%clk 0:00:43]} 1-0